Cogmind - Beta 10.2 @@@ ROGUE MODE // 2020.11.23 @ 09:04:22 // Halloween2020/ForbiddenLore Player: Ty Piggbottom Result: Self-destructed Performance ------------- Evolutions (2) 1000 Regions Visited (7) 1400 Robots Destroyed (141) 705 Value Destroyed (4744) 4744 Prototype IDs (28) 560 Alien Tech Used (0) 0 Bonus (2079) 2079 TOTAL SCORE: 10488 Bonus ------- High Alert Combat Kills 1058 Follower Combat Kills 21 Entered Garrisons 200 Used RIF Installer 500 Aligned with FarCom 300 Cogmind --------- Core Integrity 423/550 Matter 185/300 Energy 290/290 System Corruption 5% Temperature Cool (0) Movement Rolling (120) Ox2 Location -8/Materials Parts ------- > --- POWER (1) -------- Improved Deuterium Engine > --- PROPULSION (3) --- Advanced Treads Armored Huge Wheel > --- UTILITY (3) ------ High-capacity Storage Unit Advanced Targeting Computer Hacking Suite > --- WEAPON (4) ------- XL Autogun Array > --- INVENTORY (12) --- Light Nuclear Core Advanced Treads Hardened Medium Armor Plating System Shield Relay Coupler [NC] (27) Relay Coupler [Duelist] (26) Relay Coupler [Sentry] (22) Relay Coupler [Hunter] (12) High-powered Tractor Beam Gauss Rifle Rocket Launcher Peak State ------------ > --- POWER ------------ Improved Deuterium Engine > --- PROPULSION ------- Advanced Treads Armored Huge Wheel > --- UTILITY ---------- High-capacity Storage Unit Advanced Visual Processing Unit Advanced Targeting Computer > --- WEAPON ----------- XL Autogun Array > --- INVENTORY -------- Advanced Heat Sink Hardened Medium Armor Plating System Shield Relay Coupler [NC] Relay Coupler [Duelist] Relay Coupler [Sentry] Relay Coupler [Hunter] High-powered Tractor Beam Gauss Rifle Rocket Launcher [Rating: 61] Favorites ----------- Power Improved Deuterium Engine Engine Improved Deuterium Engine Power Core Light Nuclear Core Propulsion Wheel Treads Light Treads Wheel Wheel Utility Medium Storage Unit Device High-powered Tractor Beam Storage Medium Storage Unit Processor Advanced Targeting Computer Hackware Hacking Suite Protection Hardened Medium Armor Plating Weapon XL Autogun Array Energy Gun EM Pulse Gun Ballistic Gun XL Autogun Array Ballistic Cannon Slug Cannon Launcher Mini Grenade Launcher Special Weapon Mining Laser Build | -11 -10 -10 -10 -9 -8 -8 -8 ------- Run | Scr Mat Min Exi Min Mat Gar Mat Slots Evolved 4 | . . . . . 4 . . Power . | . . . . . . . . Propulsion 1 | . . . . . 1 . . Utility 1 | . . . . . 1 . . Weapon 2 | . . . . . 2 . . Parts Attached 135 | 6 24 4 2 19 45 31 4 Power 11 | 1 1 2 . 1 4 . 2 Engine 9 | 1 1 2 . . 4 . 1 Core 2 | . . . . 1 . . 1 Reactor . | . . . . . . . . Propulsion 42 | 2 6 . . 7 21 5 1 Treads 22 | 2 1 . . 3 13 3 . Leg . | . . . . . . . . Wheel 20 | . 5 . . 4 8 2 1 Hover . | . . . . . . . . Flight . | . . . . . . . . Utility 30 | 1 4 . 1 . 9 14 1 Device 9 | . 1 . . . 2 6 . Storage 6 | 1 2 . 1 . 2 . . Processor 4 | . 1 . . . 2 1 . Hackware 1 | . . . . . . . 1 Protection 10 | . . . . . 3 7 . Artifact . | . . . . . . . . Weapon 52 | 2 13 2 1 11 11 12 . Energy Gun 7 | 1 5 . . . 1 . . Energy Cannon . | . . . . . . . . Ballistic Gun 16 | 1 2 . . . 7 6 . Ballistic Cannon 5 | . . 1 . 4 . . . Launcher 23 | . 5 1 1 7 3 6 . Special Weapon 1 | . 1 . . . . . . Impact Weapon . | . . . . . . . . Slashing Weapon . | . . . . . . . . Piercing Weapon . | . . . . . . . . Special Melee Weapon . | . . . . . . . . Unidentified Prototypes 2 | . . . . . 2 . . Parts Lost 2 | . . 1 . . 1 . . Power 2 | . . 1 . . 1 . . Propulsion . | . . . . . . . . Utility . | . . . . . . . . Weapon . | . . . . . . . . Highest Loss Streak 1 | . . 1 . . 1 . . Average Slot Usage (%) 81 | . 99 99 100 100 71 71 64 Engine 9 | . 14 13 14 5 7 9 8 Core 1 | . . . . 8 1 . . Treads 15 | . 4 . . 14 19 24 12 Wheel 11 | . 23 28 28 14 7 2 7 Device 1 | . 2 . . . 1 2 . Storage 14 | . 15 14 22 28 12 9 9 Processor 10 | . 10 14 5 . 12 11 11 Protection 1 | . . . . . . 3 . Energy Gun 2 | . 17 . . . . . . Ballistic Gun 5 | . 3 . . . 8 8 9 Ballistic Cannon 2 | . . 13 10 11 . . . Launcher 4 | . 3 14 17 16 . . . Naked Turns . | . . . . . . . . Heaviest Build 65 | 13 19 21 27 29 65 65 57 Greatest Support 64 | 40 20 20 20 40 64 64 64 Greatest Overweight (x) 6 | . 1 1 1 2 6 5 2 Average Overweight (x) 1 | . . . . 1 3 1 1 Largest Inventory Capacity 12 | 6 8 8 12 12 12 12 12 Average Capacity 10 | 5 7 8 10 12 11 12 12 Most Carried 12 | 6 8 8 12 12 12 12 12 Average Carried 9 | 3 6 7 9 11 10 8 11 Final Capacity 12 | 6 8 8 12 12 12 12 12 Final Carried 12 | 6 8 8 12 11 12 12 11 Class Distribution -------------------- 56% | Skirmisher 43% | Mutant Dominant Class ---------------- Mutant | -10/Materials Mutant | -10/Mines Mutant | -10/Exiles Mutant | -9/Mines Skirmisher | -8/Materials Skirmisher | -8/Garrison Mutant | -8/Materials Resources | -11 -10 -10 -10 -9 -8 -8 -8 ----------- Run | Scr Mat Min Exi Min Mat Gar Mat Matter Collected 5273 | 278 377 224 . 386 2520 1429 59 Remotely 769 | . . . . . 394 375 . Salvage Created 5155 | 115 502 250 . 173 2581 1422 112 Parts 307 | 8 30 8 . 10 163 81 7 Haulers Intercepted 8 | . 2 . . . 6 . . Recyclers Shooed 3 | . 1 1 . . 1 . . Parts Field Recycled . | . . . . . . . . Retrieved Matter . | . . . . . . . . Parts Self-Destructed . | . . . . . . . . Prevented . | . . . . . . . . Kills | -11 -10 -10 -10 -9 -8 -8 -8 ------- Run | Scr Mat Min Exi Min Mat Gar Mat Combat Hostiles Destroyed 97 | . 8 6 . 11 40 30 2 Guns 68 | . 2 . . . 35 29 2 Cannons 1 | . . . . 1 . . . AOE 28 | . 6 6 . 10 5 1 . Classes Destroyed 16 | 3 5 . . 2 5 1 . Worker 7 | 1 1 1 . . 4 . . Builder 8 | . 1 . . . 7 . . Tunneler 3 | 1 1 . . . 1 . . Hauler 8 | . 2 . . . 6 . . Recycler 12 | 1 2 3 . 1 5 . . Operator 1 | . . . . . 1 . . Watcher 8 | . 3 . . . 5 . . Swarmer 25 | . 3 6 . 4 9 3 . Grunt 35 | . 5 . . 3 18 8 1 Brawler 2 | . . . . . 1 1 . Duelist 3 | . . . . . 1 2 . Protector 1 | . . . . . 1 . . Sentry 24 | . . . . . 10 13 1 Demolisher 1 | . . . . 1 . . . Specialist 3 | . . . . . . 3 . Assembled 3 | . . . . 3 . . . Best Kill Streak 25 | 1 7 5 . 6 25 8 1 Combat Bots Only 8 | . 5 3 . 6 8 8 1 Max Kills in Single Turn 4 | 1 3 2 . 4 3 1 1 Gunslinging . | . . . . . . . . Exploded 4 | . 2 2 . 4 3 1 . Melee . | . . . . . . . . Uniques/NPCs Destroyed . | . . . . . . . . Combat | -11 -10 -10 -10 -9 -8 -8 -8 -------- Run | Scr Mat Min Exi Min Mat Gar Mat Damage Taken 1329 | . 141 161 . 136 621 270 . Core 207 | . 27 23 . 30 97 30 . Absorbed by Shields . | . . . . . . . . Core Remaining (%) 84 | 100 . . . 68 . . . Volleys Fired 281 | 6 37 21 . 17 126 68 6 Largest 2 | 2 2 2 . 2 1 1 1 Hottest 100 | 60 100 78 . 78 60 60 60 Shots Fired 323 | 12 62 23 . 25 125 69 7 Gun 235 | 12 41 . . . 116 59 7 Cannon 16 | . . 11 . 5 . . . Launcher 67 | . 16 12 . 20 9 10 . Special 5 | . 5 . . . . . . Kinetic 213 | 6 9 11 . 5 116 59 7 Thermal 17 | . 17 . . . . . . Explosive 67 | . 16 12 . 20 9 10 . Electromagnetic 26 | 6 20 . . . . . . Robot Hit Streak 22 | 5 8 6 . 5 14 22 17 Robot Miss Streak 6 | 1 3 3 . 1 6 4 2 Penetration Max . | . . . . . . . . Secondary Targets . | . . . . . . . . Shots Hit Robots 200 | 9 26 6 . 7 102 47 3 Core Hits 205 | 4 31 10 . 21 90 46 3 Critical Hits 2 | 1 . 1 . . . . . Critical Kills 1 | 1 . . . . . . . Critical Parts Destroyed 1 | . . 1 . . . . . Melee Attacks . | . . . . . . . . Impact . | . . . . . . . . Slashing . | . . . . . . . . Piercing . | . . . . . . . . Sneak Attacks . | . . . . . . . . Combat Hostiles . | . . . . . . . . Follow-up Attacks . | . . . . . . . . Damage Inflicted 10808 | 132 987 852 . 792 5017 2879 149 Guns 7691 | 132 267 . . . 4401 2742 149 Cannons 250 | . . 165 . 85 . . . Explosions 2865 | . 720 687 . 707 614 137 . Melee . | . . . . . . . . Ramming 2 | . . . . . 2 . . Kinetic 7636 | 52 42 165 . 85 4401 2742 149 Thermal 167 | . 112 55 . . . . . Explosive 2761 | . 671 632 . 707 614 137 . Electromagnetic 242 | 80 162 . . . . . . Impact . | . . . . . . . . Slashing . | . . . . . . . . Piercing . | . . . . . . . . Highest Corruption 5 | . 2 2 2 2 5 5 5 Average Corruption 3 | . 2 2 2 2 4 5 5 Corruption Purged . | . . . . . . . . Effects 100 | . 7 6 5 9 31 37 5 Message Errors 24 | . 2 1 2 3 6 9 1 Matter Fused 18 | . . . . . 7 10 1 Heat Flow Errors 13 | . 2 3 1 . 3 3 1 Energy Discharges 17 | . 1 1 . 4 7 4 . Data Loss (minor) 16 | . . 1 2 2 4 6 1 Data Loss (major) 4 | . . . . . 2 2 . Misfires 2 | . . . . . . 1 1 Targeting Errors 5 | . 2 . . . 1 2 . Weapon Failures 1 | . . . . . 1 . . Overload Shots . | . . . . . . . . Overflow Damage 152 | . 28 91 . 29 4 . . Projectiles 5 | . . 5 . . . . . Explosions 147 | . 28 86 . 29 4 . . Melee . | . . . . . . . . Knockbacks 3 | . . 1 . 2 . . . Impact . | . . . . . . . . Kinetic 3 | . . 1 . 2 . . . Secondary . | . . . . . . . . Self-Inflicted Damage 125 | . 10 76 . . 19 20 . Shots 6 | . 1 3 . . 1 1 . Rammed 1 | . . . . . 1 . . Targets Rammed 2 | . . . . . 2 . . Kicked . | . . . . . . . . Crushed 1 | . . . . . 1 . . Highest Temperature 349 | . 207 273 242 30 324 349 121 Average Temperature 76 | . 53 62 122 14 85 90 38 Received Heat Transfer 288 | . 63 . . 36 117 72 . Effects 3 | . 1 . . . . 2 . Energy Bleed 1 | . . . . . . 1 . Interference 2 | . 1 . . . . 1 . Siege Activations . | . . . . . . . . Robots Corrupted . | . . . . . . . . Combat Hostiles . | . . . . . . . . Parts Fried . | . . . . . . . . Impact Corruptions . | . . . . . . . . Robots Melted . | . . . . . . . . Combat Hostiles . | . . . . . . . . Parts Melted . | . . . . . . . . Heat Transferred 335 | . 285 50 . . . . . Parts Sabotaged . | . . . . . . . . Parts Stolen . | . . . . . . . . Parts Stripped . | . . . . . . . . Power Chain Reactions 1 | . 1 . . . . . . Missiles Intercepted . | . . . . . . . . Alert | -11 -10 -10 -10 -9 -8 -8 -8 ------- Run | Scr Mat Min Exi Min Mat Gar Mat Peak Influence 1644 | 15 301 323 . 155 819 1644 878 Initial 801 | . 9 . . . 60 492 801 Average 551 | 5 144 172 . 22 554 1131 838 Maximum Alert Level 5 | . 1 1 . . 3 5 3 Low Security (%) 26 | 100 56 52 . 100 2 . . Level 1 14 | . 43 47 . . 15 . . Level 2 25 | . . . . . 61 15 . Level 3 19 | . . . . . 20 33 100 Level 4 10 | . . . . . . 40 . Level 5 2 | . . . . . . 10 . High Security . | . . . . . . . . Max Security . | . . . . . . . . Squads Dispatched 5 | . . . . . 5 . . Investigation 1 | . . . . . 1 . . Extermination . | . . . . . . . . Reinforcement . | . . . . . . . . Assault 1 | . . . . . 1 . . Garrison 3 | . . . . . 3 . . Intercept . | . . . . . . . . Construction Impeded . | . . . . . . . . Haulers Reinforced . | . . . . . . . . Stealth | -11 -10 -10 -10 -9 -8 -8 -8 --------- Run | Scr Mat Min Exi Min Mat Gar Mat Distress Signals 4 | . 1 . . . 1 . 2 Communications Jammed . | . . . . . . . . Distress Signals . | . . . . . . . . Times Spotted 94 | . 13 7 . 13 38 20 3 Peak Tracking Total 7 | . 5 3 . 4 6 7 1 Tactical Retreats 1 | . . . . . . 1 . Traps | -11 -10 -10 -10 -9 -8 -8 -8 ------- Run | Scr Mat Min Exi Min Mat Gar Mat Traps Triggered 8 | . 3 . . . 2 3 . Indirectly . | . . . . . . . . Trap Hack Attempts . | . . . . . . . . Triggered . | . . . . . . . . Disarmed . | . . . . . . . . Reprogrammed . | . . . . . . . . Reused . | . . . . . . . . Traps Extracted . | . . . . . . . . Installed . | . . . . . . . . Triggered . | . . . . . . . . Exploded 1 | . . . . 1 . . . Machines | -11 -10 -10 -10 -9 -8 -8 -8 ---------- Run | Scr Mat Min Exi Min Mat Gar Mat Machines Disabled 25 | . 1 5 . 1 11 7 . Max in Single Turn 2 | . 1 2 . 1 1 2 . Garrison Relay 2 | . . . . . . 2 . Phase Generator 1 | . . . . . . 1 . Machines Sabotaged . | . . . . . . . . Garrisons Compromised . | . . . . . . . . Overloaded Fab Kills . | . . . . . . . . Fab Network Shutdowns . | . . . . . . . . Hacking | -11 -10 -10 -10 -9 -8 -8 -8 --------- Run | Scr Mat Min Exi Min Mat Gar Mat Machines Accessed 28 | . 11 1 1 . 13 . 2 Terminals 21 | . 8 1 . . 11 . 1 Fabricators . | . . . . . . . . Repair Stations 1 | . 1 . . . . . . Recycling Units 3 | . 2 . . . 1 . . Scanalyzers 1 | . . . . . . . 1 Garrison Access 1 | . . . . . 1 . . Total Hacks 105 | . 41 3 1 . 47 . 13 Successful 67 | . 22 2 1 . 29 . 13 Failed 38 | . 19 1 . . 18 . . Catastrophic 4 | . 3 . . . 1 . . Database Lockouts . | . . . . . . . . Manual 76 | . 32 2 1 . 39 . 2 Terminals 76 | . 31 3 . . 40 . 2 Fabricators . | . . . . . . . . Repair Stations 3 | . 3 . . . . . . Recycling Units 11 | . 7 . . . 4 . . Scanalyzers 11 | . . . . . . . 11 Garrison Access 3 | . . . . . 3 . . Terminal Hacks 28 | . 11 2 1 . 14 . . Record 2 | . . . . . 2 . . Robot Analysis 4 | . 3 . . . 1 . . Prototype ID Bank 2 | . 1 . . . 1 . . Level Access Points 1 | . . . . . 1 . . Emergency Access Points 1 | . 1 . . . . . . Terminal Index 2 | . 1 . . . 1 . . Alert Level 2 | . 1 . . . 1 . . Unreport Threat 3 | . 1 . . . 2 . . Locate Traps 6 | . 1 . . . 5 . . Maintenance Status 1 | . . 1 . . . . . Transport Status 1 | . 1 . . . . . . Zone Layout 2 | . 1 1 . . . . . EX-Prototype ID Bank 1 | . . . 1 . . . . Fabricator Hacks . | . . . . . . . . Repair Station Hacks 2 | . 2 . . . . . . Scan Component 1 | . 1 . . . . . . Repair 1 | . 1 . . . . . . Recycling Unit Hacks 2 | . 1 . . . 1 . . Report Inventory 2 | . 1 . . . 1 . . Scanalyzer 11 | . . . . . . . 11 Insert Component 4 | . . . . . . . 4 Analyze 7 | . . . . . . . 7 Garrison Access Hacks 1 | . . . . . 1 . . Unlock Access 1 | . . . . . 1 . . Unauthorized Hacks 23 | . 8 . . . 13 . 2 Terminals 16 | . 4 . . . 10 . 2 Assimilate 5 | . . . . . 4 . 1 Botnet 9 | . 3 . . . 5 . 1 Operators 2 | . 1 . . . 1 . . Fabricators . | . . . . . . . . Repair Stations . | . . . . . . . . Recycling Units 6 | . 4 . . . 2 . . Reject 3 | . 2 . . . 1 . . Mask 3 | . 2 . . . 1 . . Scanalyzers . | . . . . . . . . Garrison Access 1 | . . . . . 1 . . Broadcast 1 | . . . . . 1 . . Data Cores Recovered . | . . . . . . . . Used . | . . . . . . . . Hacking Detections 26 | . 10 1 . . 13 . 2 Full Trace Events 1 | . . . . . 1 . . Feedback Events . | . . . . . . . . Feedback Blocked . | . . . . . . . . Robot Schematics Acquired . | . . . . . . . . Robots Built . | . . . . . . . . Matter . | . . . . . . . . Time . | . . . . . . . . Total Robot Build Rating . | . . . . . . . . Part Schematics Acquired 4 | . . . . . . . 4 Parts Built . | . . . . . . . . Matter . | . . . . . . . . Time . | . . . . . . . . Total Part Build Rating . | . . . . . . . . Parts Repaired 1 | . 1 . . . . . . Time 26 | . 26 . . . . . . Parts Recycled . | . . . . . . . . Recycled Matter . | . . . . . . . . Retrieved Matter . | . . . . . . . . Retrieved Components . | . . . . . . . . Parts Scanalyzed 4 | . . . . . . . 4 Part Schematics Acquired 4 | . . . . . . . 4 Parts Damaged . | . . . . . . . . Bothacking | -11 -10 -10 -10 -9 -8 -8 -8 ------------ Run | Scr Mat Min Exi Min Mat Gar Mat Used RIF Installer 1 | . . . . . . 1 . Robots Hacked . | . . . . . . . . Non-combat . | . . . . . . . . Combat . | . . . . . . . . Robot Hacks Applied . | . . . . . . . . Relay Couplers Released 7 | . . . . . . 7 . Machine Destruction 7 | . . . . . . 7 . Robots Rewired . | . . . . . . . . Allies Hacked . | . . . . . . . . Hacks Repelled . | . . . . . . . . Allies | -11 -10 -10 -10 -9 -8 -8 -8 -------- Run | Scr Mat Min Exi Min Mat Gar Mat Total Allies 5 | . . 2 . . 2 . 1 Largest Group 3 | . . 2 2 . 2 2 3 Highest-Rated Group 45 | . . 45 45 . 20 20 30 Highest-Rated Ally 31 | . . 31 31 . 10 10 10 Total Orders 37 | . . . . . 8 18 11 STAY 19 | . . . . . 4 9 6 FOLLOW 18 | . . . . . 4 9 5 Ally Attacks 7 | . . 7 . . . . . Total Damage 86 | . . 86 . . . . . Kills 3 | . . 3 . . . . . Allies Corrupted . | . . . . . . . . Allies Melted . | . . . . . . . . Intel | -11 -10 -10 -10 -9 -8 -8 -8 ------- Run | Scr Mat Min Exi Min Mat Gar Mat Robot Analysis Total 4 | . 3 . . . 1 . . Derelict Logs Recovered 1 | . . 1 . . . . . Drone Launches . | . . . . . . . . Drone Recoveries . | . . . . . . . . Exploration | -11 -10 -10 -10 -9 -8 -8 -8 ------------- Run | Scr Mat Min Exi Min Mat Gar Mat Turns Passed 6225 | 118 841 415 320 701 2104 1476 250 Spaces Moved 4415 | 54 765 376 365 571 1322 802 160 Core 1 | 1 . . . . . . . Treads 1099 | 53 . . . 54 318 599 75 Legs . | . . . . . . . . Wheels 3315 | . 765 376 365 517 1004 203 85 Hover . | . . . . . . . . Flight . | . . . . . . . . Fastest Speed 50 | 50 80 80 80 90 100 130 120 Average Speed 116 | 157 82 84 86 103 132 152 143 Slowest Speed 200 | 160 90 90 90 160 165 200 185 Overloaded Moves . | . . . . . . . . Propulsion Burnouts . | . . . . . . . . Robots Hopped . | . . . . . . . . Cave-ins Triggered 1 | . . . . . 1 . . Exploration Rate (%) 61 | 4 96 68 62 85 93 74 9 Regions Visited 7 Branch Regions 3 Pre-discovered Areas 1 | . . 1 . . . . . Known Exits Taken 1 | . . . . . 1 . . Unknown Exits Taken 5 | 1 1 1 1 1 . . . Scrap Searched 4 | . . 1 . 3 . . . Spaces Dug 140 | . 15 34 . 48 37 . 6 Terrain Destroyed 727 | . 86 96 . 129 166 242 8 Melee . | . . . . . . . . Projectile 132 | . 5 2 . . 115 2 8 AOE 595 | . 81 94 . 129 51 240 . Terrain Rammed . | . . . . . . . . Walls Destroyed . | . . . . . . . . Machines Disabled . | . . . . . . . . Actions | -11 -10 -10 -10 -9 -8 -8 -8 --------- Run | Scr Mat Min Exi Min Mat Gar Mat Total 5345 | 73 896 450 370 654 1662 1058 182 Wait 328 | . 56 45 . 27 108 90 2 Move 4406 | 53 764 375 364 570 1320 800 160 Hop . | . . . . . . . . Pick Up 64 | 7 6 1 2 7 19 19 3 Fast Attach 36 | 6 6 2 1 3 12 5 1 Attach 29 | . 1 . . 1 8 16 3 Detach 35 | . 1 1 1 2 10 17 3 Swap 70 | . 17 2 1 15 25 10 . Drop 83 | 1 8 3 1 12 31 23 4 Fire 281 | 6 37 21 . 17 126 68 6 Melee . | . . . . . . . . Ram . | . . . . . . . . Kick . | . . . . . . . . Crush 2 | . . . . . 2 . . Escape Stasis 11 | . . . . . 1 10 . Rewire . | . . . . . . . . Trap . | . . . . . . . . Miscellaneous . | . . . . . . . . Route ------- -11/Scrapyard -10/Materials (discovered 5 exits: [*Mat x3] / *Min x2) -10/Mines (discovered 2 exits: [*Mat] / *Exi) -10/Exiles -9/Mines -8/Materials (discovered 4 exits: *Fac x3 / Gar) -8/Garrison (discovered 2 exits: *Mat x2) -8/Materials History --------- Turn | Location | Event 31 | -11/Scrapyard | Discovered new exit (range 16) 119 | -11/Scrapyard | Entered Materials 309 | -10/Materials | Build established: Mutant 344 | -10/Materials | Discovered new exit (range 14) 457 | -10/Materials | Discovered new exit (range 10) 539 | -10/Materials | Repaired EM Pulse Gun 635 | -10/Materials | Discovered new exit (range 14) 700 | -10/Materials | Discovered new exit (range 16) 742 | -10/Materials | Discovered new exit (range 3) 960 | -10/Materials | Entered Mines 984 | -10/Mines | A weapon hastily lodged in a ceiling crevice suddenly fell to the ground 1075 | -10/Mines | Discovered new exit (range 8) 1079 | -10/Mines | Learned location of Zion (-7) 1317 | -10/Mines | Deemed a non-threat by the Exiles lab entrance 1317 | -10/Mines | Discovered new exit (range 5) 1375 | -10/Mines | Entered Exiles 1375 | -10/Exiles | Accompanied by 2 allies 1390 | -10/Exiles | Discovered new exit (range 15) 1401 | -10/Exiles | Met 8R-AWN 1405 | -10/Exiles | Led the pair of lost Derelicts to a safe place 1412 | -10/Exiles | Met EX-HEX 1437 | -10/Exiles | Met EX-BIN 1464 | -10/Exiles | Met EX-DEC 1570 | -10/Exiles | Opened EX-Vault 1576 | -10/Exiles | Found XL Autogun Array 1597 | -10/Exiles | Warned to stay clear of 0b10 Research branches 1606 | -10/Exiles | Aligned with FarCom system 1607 | -10/Exiles | Given EX-Vault access code 1695 | -10/Exiles | Left Exiles lab with XL Autogun Array 1695 | -10/Exiles | Entered Mines 1696 | -9/Mines | Assembled infested the area 1701 | -9/Mines | Assisted by a Guerilla fighting off Assembled 2166 | -9/Mines | Received a Rocket Launcher from a helpful Derelict 2383 | -9/Mines | Discovered new exit (range 13) 2396 | -9/Mines | Entered Materials 2396 | -8/Materials | Evolved 4 slots: Propulsion x1, Utility x1, Weapon x2 2668 | -8/Materials | Garrison activated, responded to threat 2714 | -8/Materials | Build established: Skirmisher 2815 | -8/Materials | Discovered new exit (range 9) 3384 | -8/Materials | Crushed by falling debris 3517 | -8/Materials | Discovered new exit (range 9) 3796 | -8/Materials | Discovered new exit (range 10) 3996 | -8/Materials | First assault squad dispatched 4075 | -8/Materials | Destroyed 8 combat bots 4211 | -8/Materials | Identified exit to Factory 4499 | -8/Materials | Identified exit to Garrison 4500 | -8/Materials | Entered Garrison 4500 | -8/Garrison | Accompanied by 2 allies 4623 | -8/Garrison | Triggered checkpoint 4664 | -8/Garrison | Triggered checkpoint 4723 | -8/Garrison | Triggered checkpoint 4754 | -8/Garrison | Destroyed 8 combat bots 4771 | -8/Garrison | Discovered new exit (range 14) 4945 | -8/Garrison | Phase Generator disabled 5026 | -8/Garrison | Triggered checkpoint 5256 | -8/Garrison | Discovered new exit (range 7) 5272 | -8/Garrison | Installed Relay Interface Framework 5292 | -8/Garrison | Triggered checkpoint 5350 | -8/Garrison | Garrison Relay disabled 5588 | -8/Garrison | Spotted B-75 Beast 5622 | -8/Garrison | Triggered checkpoint 5778 | -8/Garrison | Triggered checkpoint 5824 | -8/Garrison | Garrison Relay disabled 5976 | -8/Garrison | Entered Materials 5976 | -8/Materials | Accompanied by 2 allies 6226 | -8/Materials | Self-destructed Last Messages --------------- 06090_ Acquired Unknown Power Core. 06090_ Identified Lgt. Nuclear Core. 06107_ Connecting with Terminal... >>Trojan(Assimilate) Trojan loaded successfully. Testing... System interface override in place. >>Trojan(Botnet) Trojan loaded successfully. Testing... Terminal linked with 0 systems. Awaiting botnet instructions. 06111_ O-16 Technician: "IFF HANDSHAKE FAILED. SECURING TERMINAL." 06116_ O-16 Technician sends out distress signal. 06116_ O-16 Technician accesses terminal... 06116_ O-16 Technician IFF database reprogrammed. 06133_ Y-45 Defender destroyed. 06164_ System corrupted: Matter fused (-5). 06188_ System corrupted: Heat flow error (+144). [Achievement: This Is Interesting...] Map ----- +----------------------------------------------------+ | ????????????????????????????????? | | ????????????????????????????????? | | ????????????????????????????????? | | ????????????????????????????????? | | ????????????????????????????????? | | ????????????????????????????????? | | ????????????????????????????????? | | ????????????????????????????????? | | ????????????????????????????????? | | ????????????????????????????????? | | ????????????????????????????????? | | ????????????????????????????????? | | ????????????????????????????????? | | ????????????????????????????????? | | ????????????????????????????????? | | ????????????????????????????????? | | ????????????????????????????????? | | ?????#??????????????????????????? | | ????? ??????????????????????????? | | ?????w??????????????????????????? | | ????# #?????????????????????????? | | ????# #?????????????????????????? | | ????# #?????????????????????????? | | ????# ###########???????????????? | | ????# # = #???????????????? | | ????# # @ #???????????????? | | ????# # """ #???????????????? | | ????# # """ #???????????????? | | #####"# """ o #???????????????? | | # [ # o"T" #???????????????? | | # """ + o """ #???????????????? | | #!""" # #???????????????? | | # """ ##+###+####???????????????? | | # " =%! ???????????? | | # """ # *[ ???????????? | | # """ + ???????????? | | # """ # """ ???????????? | | # # """ ?????????? | | # # """ o ???????? | | # # ??????? | | # * # ???????? | | #####"###+## """ "???????????? | | ?#] ! # """ ????????????? | | ?# * # """ ?????????????? | | ?# """ # ??????????????? | | ?#[!! """ # ???????????????? | | ?#[! """ # ##+#####?????????? | | ?#!! # # #?????????? | | ?# # # #?????????? | | ?# " " "" #?????????? | +----------------------------------------------------+ Best States ------------- Heat Dissipation 50 Energy Generation 18 Energy Capacity 290 Matter Stores 300 Matter Capacity 300 Sight Range 20 Terrain Scan Density 10 Armor Coverage 225 Evasion (%) 44 Targeting Accuracy 8 Recoil Reduction 3 Offensive Hacking 10 Item Schematics ----------------- Hacking Suite | -8/Materials | Scanalyzed System Shield | -8/Materials | Scanalyzed Gauss Rifle | -8/Materials | Scanalyzed Adv. Treads | -8/Materials | Scanalyzed Robot Schematics ------------------ None Fabricated ------------ Nothing Alien Tech Used ----------------- None Achievements -------------- This Is Interesting... Challenges ------------ None Game ------ Seed IntegrationDeliveryWand Manual? 0 Play Time 02:26:09 Cumulative 209.1 hours Start 2020.11.22 @ 10:35:51 End 2020.11.23 @ 09:04:22 Sessions 13 Manual Loads 0 Difficulty Rogue Special Mode Halloween2020/ForbiddenLore Game No. 79 Rogue 79 Adventurer 0 Explorer 0 Win Type - Total 0 Types 0/0/0/0/0/0/0/0/0 Lore% 26 Gallery% 31 Achievement% 26 Wizard Run 0 Options --------- ASCII 0 Keyboard 1 Movement Vi Keybinds 0 Fullscreen 1 Font 12/Terminus Map View 83x54 Tactical HUD 1 Map Filters NONE Filters NONE Steam 1 RUN: 812de0cc-77ec-4976-9ead-9bcbbbb04350